Cogmind - Beta 9.4 *** ADVENTURER MODE // 2020.06.20 @ 12:46:48 Player: Scyralis Result: Self-destructed Performance ------------- Evolutions (1) 500 Regions Visited (2) 400 Robots Destroyed (30) 150 Value Destroyed (416) 416 Prototype IDs (2) 40 Alien Tech Used (0) 0 Bonus (0) 0 TOTAL SCORE: 1506 Bonus ------- None Cogmind --------- Core Integrity 380/400 Matter 290/300 Energy 125/125 System Corruption 2% Temperature Cool (19) Movement Flying (117) Ox1 Location -9/Materials Parts ------- > --- POWER (1) -------- Light Ion Engine > --- PROPULSION (2) --- Flight Unit Flight Unit > --- UTILITY (4) ------ Structural Scanner Sensor Array Hardened Light Armor Plating > --- WEAPON (2) ------- (None) > --- INVENTORY (4) ---- (None) Peak State ------------ > --- POWER ------------ Light Ion Engine > --- PROPULSION ------- Flight Unit Flight Unit > --- UTILITY ---------- Heat Sink Structural Scanner Sensor Array Hardened Light Armor Plating > --- WEAPON ----------- Small Laser > --- INVENTORY -------- (None) [Rating: 9] Favorites ----------- Power Ion Engine Engine Ion Engine Propulsion Hover Unit Wheel Compact Wheel Hover Unit Hover Unit Flight Unit Flight Unit Utility Sensor Array Device Sensor Array Protection Hardened Light Armor Plating Weapon Small Laser Energy Gun Small Laser Build | -11 -10 -9 ------- Run | Scr Mat Mat Slots Evolved 2 | . . 2 Power . | . . . Propulsion . | . . . Utility 2 | . . 2 Weapon . | . . . Parts Attached 21 | 6 9 6 Power 3 | 1 1 1 Engine 3 | 1 1 1 Core . | . . . Reactor . | . . . Propulsion 8 | 2 4 2 Treads . | . . . Leg . | . . . Wheel 2 | 2 . . Hover 4 | . 4 . Flight 2 | . . 2 Utility 5 | . 2 3 Device 4 | . 2 2 Storage . | . . . Processor . | . . . Hackware . | . . . Protection 1 | . . 1 Artifact . | . . . Weapon 5 | 3 2 . Energy Gun 5 | 3 2 . Energy Cannon . | . . . Ballistic Gun . | . . . Ballistic Cannon . | . . . Launcher . | . . . Special Weapon . | . . . Impact Weapon . | . . . Slashing Weapon . | . . . Piercing Weapon . | . . . Special Melee Weapon . | . . . Unidentified Prototypes . | . . . Parts Lost 7 | . 2 5 Power 1 | . . 1 Propulsion 2 | . 1 1 Utility 1 | . . 1 Weapon 3 | . 1 2 Highest Loss Streak 3 | . 1 3 Average Slot Usage (%) 83 | . 85 79 Engine 11 | . 13 7 Wheel 7 | . 10 . Hover 14 | . 15 12 Flight 1 | . . 6 Device 25 | . 22 33 Protection 1 | . . 4 Energy Gun 21 | . 23 15 Naked Turns . | . . . Heaviest Build 12 | 8 11 12 Greatest Support 26 | 26 26 12 Greatest Overweight (x) 1 | . 1 1 Average Overweight (x) . | . . . Largest Inventory Capacity 4 | 4 4 4 Average Capacity 4 | 4 4 4 Most Carried 4 | 2 4 2 Average Carried . | . 1 . Final Capacity 4 | 4 4 4 Final Carried 2 | . 2 . Class Distribution -------------------- 73% | Mutant 26% | Scavenger-Mutant Dominant Class ---------------- Mutant | -10/Materials Scavenger-Mutant | -9/Materials Resources | -11 -10 -9 ----------- Run | Scr Mat Mat Matter Collected 390 | 260 90 40 Remotely . | . . . Salvage Created 1002 | 220 637 145 Parts 63 | 17 39 7 Haulers Intercepted 2 | . 2 . Recyclers Shooed 4 | . 1 3 Parts Field Recycled . | . . . Retrieved Matter . | . . . Parts Self-Destructed . | . . . Prevented . | . . . Kills | -11 -10 -9 ------- Run | Scr Mat Mat Combat Hostiles Destroyed 10 | . 7 3 Guns 10 | . 7 3 Classes Destroyed 8 | 3 4 1 Worker 4 | 1 3 . Builder 3 | . 3 . Tunneler 6 | 5 1 . Hauler 2 | . 2 . Recycler 3 | 1 1 1 Watcher 2 | . 2 . Swarmer 3 | . . 3 Grunt 7 | . 7 . Best Kill Streak 8 | 7 8 2 Combat Bots Only 2 | . 2 2 Max Kills in Single Turn 2 | 2 1 1 Gunslinging . | . . . Exploded . | . . . Melee . | . . . Uniques/NPCs Destroyed . | . . . Combat | -11 -10 -9 -------- Run | Scr Mat Mat Damage Taken 571 | . 421 150 Core 185 | . 165 20 Absorbed by Shields . | . . . Core Remaining (%) 67 | 100 34 . Volleys Fired 101 | 16 67 18 Largest 2 | 2 2 2 Hottest 90 | 90 90 80 Shots Fired 156 | 27 97 32 Gun 156 | 27 97 32 Cannon . | . . . Launcher . | . . . Special . | . . . Kinetic . | . . . Thermal 156 | 27 97 32 Explosive . | . . . Electromagnetic . | . . . Robot Hit Streak 19 | 5 19 8 Robot Miss Streak 2 | 2 1 2 Penetration Max . | . . . Secondary Targets . | . . . Shots Hit Robots 103 | 14 69 20 Core Hits 49 | 8 32 9 Critical Hits . | . . . Critical Kills . | . . . Critical Parts Destroyed . | . . . Melee Attacks . | . . . Impact . | . . . Slashing . | . . . Piercing . | . . . Sneak Attacks . | . . . Combat Hostiles . | . . . Follow-up Attacks . | . . . Damage Inflicted 1204 | 176 804 224 Guns 1117 | 176 754 187 Cannons . | . . . Explosions 33 | . 33 . Melee . | . . . Ramming 54 | . 17 37 Kinetic . | . . . Thermal 1117 | 176 754 187 Explosive . | . . . Electromagnetic 33 | . 33 . Impact . | . . . Slashing . | . . . Piercing . | . . . Highest Corruption 2 | . . 2 Average Corruption 2 | . . 2 Corruption Purged . | . . . Effects 1 | . . 1 Message Errors 1 | . . 1 Overload Shots . | . . . Overflow Damage . | . . . Projectiles . | . . . Explosions . | . . . Melee . | . . . Knockbacks . | . . . Impact . | . . . Kinetic . | . . . Secondary . | . . . Self-Inflicted Damage 23 | . 8 15 Shots . | . . . Rammed 15 | . 1 14 Targets Rammed 15 | . 1 14 Kicked . | . . . Crushed . | . . . Highest Temperature 264 | 110 264 19 Average Temperature 78 | 40 86 19 Received Heat Transfer 327 | . 300 27 Effects 1 | . 1 . Interference 1 | . 1 . Siege Activations . | . . . Robots Corrupted . | . . . Combat Hostiles . | . . . Parts Fried . | . . . Impact Corruptions . | . . . Robots Melted . | . . . Combat Hostiles . | . . . Parts Melted 6 | 1 5 . Heat Transferred 2798 | 471 1902 425 Parts Sabotaged . | . . . Parts Stolen . | . . . Parts Stripped . | . . . Power Chain Reactions . | . . . Missiles Intercepted . | . . . Alert | -11 -10 -9 ------- Run | Scr Mat Mat Peak Influence 281 | 35 281 75 Average Influence 103 | 11 145 58 Maximum Alert Level 1 | . 1 . Low Security (%) 76 | 100 61 100 Level 1 23 | . 38 . Level 2 . | . . . Level 3 . | . . . Level 4 . | . . . Level 5 . | . . . High Security . | . . . Max Security . | . . . Squads Dispatched 4 | . 3 1 Investigation 3 | . 3 . Extermination . | . . . Reinforcement 1 | . . 1 Assault . | . . . Garrison . | . . . Intercept . | . . . Construction Impeded . | . . . Haulers Reinforced . | . . . Stealth | -11 -10 -9 --------- Run | Scr Mat Mat Distress Signals 1 | . 1 . Communications Jammed . | . . . Distress Signals . | . . . Times Spotted 19 | . 13 6 Peak Tracking Total 4 | . 4 4 Tactical Retreats . | . . . Traps | -11 -10 -9 ------- Run | Scr Mat Mat Traps Triggered 1 | . 1 . Indirectly . | . . . Trap Hack Attempts . | . . . Triggered . | . . . Disarmed . | . . . Reprogrammed . | . . . Reused . | . . . Traps Extracted . | . . . Installed . | . . . Triggered . | . . . Machines | -11 -10 -9 ---------- Run | Scr Mat Mat Machines Disabled 2 | . 2 . Max in Single Turn 2 | . 2 . Machines Sabotaged . | . . . Garrisons Compromised . | . . . Overloaded Fab Kills . | . . . Fab Network Shutdowns . | . . . Hacking | -11 -10 -9 --------- Run | Scr Mat Mat Machines Accessed 8 | . 8 . Terminals 6 | . 6 . Fabricators . | . . . Repair Stations 1 | . 1 . Recycling Units 1 | . 1 . Scanalyzers . | . . . Garrison Access . | . . . Total Hacks 28 | . 28 . Successful 24 | . 24 . Failed 4 | . 4 . Catastrophic . | . . . Database Lockouts . | . . . Manual . | . . . Terminals 25 | . 25 . Fabricators . | . . . Repair Stations 2 | . 2 . Recycling Units 1 | . 1 . Scanalyzers . | . . . Garrison Access . | . . . Terminal Hacks 21 | . 21 . Record 6 | . 6 . Prototype ID Bank 1 | . 1 . Emergency Access Points 1 | . 1 . Alert Level 1 | . 1 . Locate Traps 2 | . 2 . Dispatch Records 2 | . 2 . Surveillance Status 1 | . 1 . Transport Status 1 | . 1 . Reinforcement Status 1 | . 1 . Recall Assault 1 | . 1 . Hauler Manifests 1 | . 1 . Registered Components 1 | . 1 . Registered Prototypes 1 | . 1 . Zone Layout 1 | . 1 . Fabricator Hacks . | . . . Repair Station Hacks 2 | . 2 . Scan Component 1 | . 1 . Repair 1 | . 1 . Recycling Unit Hacks 1 | . 1 . Retrieve Components 1 | . 1 . Scanalyzer . | . . . Garrison Access Hacks . | . . . Unauthorized Hacks . | . . . Terminals . | . . . Fabricators . | . . . Repair Stations . | . . . Recycling Units . | . . . Scanalyzers . | . . . Garrison Access . | . . . Data Cores Recovered . | . . . Used . | . . . Hacking Detections 5 | . 5 . Full Trace Events 4 | . 4 . Feedback Events . | . . . Feedback Blocked . | . . . Robot Schematics Acquired . | . . . Robots Built . | . . . Matter . | . . . Time . | . . . Total Robot Build Rating . | . . . Part Schematics Acquired . | . . . Parts Built . | . . . Matter . | . . . Time . | . . . Total Part Build Rating . | . . . Parts Repaired 1 | . 1 . Time 26 | . 26 . Parts Recycled . | . . . Recycled Matter . | . . . Retrieved Matter . | . . . Retrieved Components . | . . . Parts Scanalyzed . | . . . Part Schematics Acquired . | . . . Parts Damaged . | . . . Bothacking | -11 -10 -9 ------------ Run | Scr Mat Mat Used RIF Installer . | . . . Robots Hacked . | . . . Non-combat . | . . . Combat . | . . . Robot Hacks Applied . | . . . Relay Couplers Released . | . . . Robots Rewired . | . . . Allies Hacked . | . . . Hacks Repelled . | . . . Allies | -11 -10 -9 -------- Run | Scr Mat Mat Total Allies . | . . . Largest Group . | . . . Highest-Rated Group . | . . . Highest-Rated Ally . | . . . Total Orders . | . . . Ally Attacks . | . . . Total Damage . | . . . Kills . | . . . Allies Corrupted . | . . . Allies Melted . | . . . Intel | -11 -10 -9 ------- Run | Scr Mat Mat Robot Analysis Total . | . . . Derelict Logs Recovered . | . . . Drone Launches . | . . . Drone Recoveries . | . . . Exploration | -11 -10 -9 ------------- Run | Scr Mat Mat Turns Passed 696 | 109 423 164 Spaces Moved 423 | 63 280 80 Core 10 | 10 . . Treads . | . . . Legs . | . . . Wheels 139 | 53 86 . Hover 233 | . 194 39 Flight 41 | . . 41 Fastest Speed 50 | 50 56 56 Average Speed 76 | 83 70 90 Slowest Speed 120 | 90 120 120 Overloaded Moves . | . . . Propulsion Burnouts . | . . . Robots Hopped . | . . . Cave-ins Triggered . | . . . Exploration Rate (%) 19 | 3 43 11 Regions Visited 2 Branch Regions . Pre-discovered Areas . | . . . Known Exits Taken . | . . . Unknown Exits Taken 2 | 1 1 . Scrap Searched . | . . . Spaces Dug . | . . . Terrain Destroyed . | . . . Melee . | . . . Projectile . | . . . AOE . | . . . Actions | -11 -10 -9 --------- Run | Scr Mat Mat Total 642 | 93 409 140 Wait 54 | . 38 16 Move 422 | 62 280 80 Hop . | . . . Pick Up 22 | 7 11 4 Fast Attach . | . . . Attach 20 | 6 8 6 Detach . | . . . Swap 1 | . 1 . Drop 8 | 2 4 2 Fire 101 | 16 67 18 Melee . | . . . Ram 14 | . . 14 Kick . | . . . Crush . | . . . Escape Stasis . | . . . Rewire . | . . . Trap . | . . . Miscellaneous . | . . . Route ------- -11/Scrapyard -10/Materials (discovered 2 exits: [*Mat x2]) -9/Materials History --------- Turn | Location | Event 17 | -11/Scrapyard | Discovered new exit (range 15) 110 | -11/Scrapyard | Entered Materials 295 | -10/Materials | Discovered new exit (range 3) 312 | -10/Materials | Build established: Mutant 424 | -10/Materials | Repaired Ion Engine 471 | -10/Materials | Core integrity fell below 50% 528 | -10/Materials | Discovered new exit (range 11) 533 | -10/Materials | Entered another Materials area 533 | -9/Materials | Evolved 2 slots: Utility x2 638 | -9/Materials | Lost 3 parts (1p1n1w) 697 | -9/Materials | Self-destructed Last Messages --------------- 00606_ Slammed into S-10 Pest. 00607_ Hover Unit destroyed. 00608_ K-01 Serf collects debris. 00609_ Slammed into S-10 Pest. 00609_ R-06 Scavenger collects Lgt. Assault Rifle. 00610_ Slammed into S-10 Pest. 00611_ Acquired Hrd. Light Armor Plating. 00612_ Slammed into S-10 Pest. 00612_ K-01 Serf collects debris. 00613_ Slammed into S-10 Pest. 00613_ R-06 Scavenger collects Lgt. Assault Rifle. 00614_ S-10 Pest destroyed. 00615_ K-01 Serf collects debris. 00617_ Acquired Lgt. Ion Engine. 00620_ I SK3>AQPMRNTQEBDL1QA|PSDTY 00641_ Dropped Hover Unit. 00696_ Sml. Laser destroyed. 00696_ Heat Sink destroyed. Map ----- +----------------------------------------------------+ | ???????????????????????????????????? | | ???????????????????????????????????? | | ????########???????????????????????? | | ????# #???????????????????????? | | ????# "" #???????????????????????? | | ????#! ""S #???????????????????????? | | ????# "" #???????????????????????? | | ????# #???????????????????????? | | ????# ! #???????????????????????? | | ????####+####??????????????????????? | | ???????# ###########????????????? | | ???????# # #????????????? | | ???????# # #????????????? | | ???#####+## # #????????????? | | ???# # # #????????????? | | ???# # # #????????????? | | ???# + + #????????????? | | ???# ] # # #????????????? | | ???# # # #????????????? | | ???# # #####+#######??????????? | | ???######## #??# #??????????? | | ??????????# #??# #??????????? | | ??????????# #??# =[ "#??????????? | | ??????????# #??# =[ "#??????????? | | ??????????# #### = ="#??????????? | | ??????????#@ %% g %%% T#??????????? | | ??????????+ %%% % %g"#??????????? | | ??????????#%% % "#??????????? | | ??????????###/## "#??????????? | | ???????????#%k # #??????????? | | ???????????# % # ???????? | | ???????????# # ????? | | ???????????# % # g ?????? | | ???????????# = #######+########????? | | ???????????# #?????? ??????????? | | ???????????# #?????? ?????????? | | ???????????##+##?????? ????????? | | ????????????# #??????? ?T????????? | | ????????????# ###????? ??????????? | | ????????????# #?????###??????????? | | ????????????# #??????????????????? | | ????????????# #??????????????????? | | ????????????# #??????????????????? | | ??#########?# #??????????????????? | | ??# ?# #??????????????????? | | ??# # #??????????????????? | | ??# # #??????????????????? | | ??# + #??????????????????? | | ??# ==! # #??????????????????? | | ??# =!! # #??????????????????? | +----------------------------------------------------+ Best States ------------- Heat Dissipation 38 Energy Generation 10 Energy Capacity 250 Matter Stores 300 Matter Capacity 300 Sight Range 16 Robot Scan Range 10 Terrain Scan Density 10 Armor Coverage 150 Resistance: KI 20 Resistance: TH 20 Resistance: EX 20 Resistance: EM 20 Resistance: I 20 Resistance: S 20 Resistance: P 20 Evasion (%) 53 Offensive Hacking 10 Item Schematics ----------------- None Robot Schematics ------------------ None Fabricated ------------ Nothing Alien Tech Used ----------------- None Achievements -------------- None Challenges ------------ None Game ------ Seed BattleCompactWheel Manual? 0 Play Time 00:09:16 Cumulative 117.8 hours Start 2020.06.20 @ 12:38:47 End 2020.06.20 @ 12:46:48 Sessions 1 Manual Loads 0 Difficulty Adventurer Special Mode None Game No. 45 Rogue 0 Adventurer 45 Explorer 0 Win Type - Total 1 Types 1/0/0/0/0/0/0 Lore% 21 Gallery% 49 Achievement% 33 Wizard Run 0 Options --------- ASCII 0 Keyboard 0 Movement Numpad Keybinds 0 Fullscreen 0 Font 12/Smallcaps Map View 83x54 Tactical HUD 1 Map Filters NONE Filters NONE Steam X RUN: 5a5e8d20-2130-4bf1-9ae6-eea5e45d80a8